[Event "Early-Titled-Tuesday-Blitz-September-12-2023"]
[Site "Chess.com"]
[Date "2023.09.12"]
[Round "11"]
[White "Biregina"]
[Black "FMStan15"]
[Result "1-0"]
[WhiteElo "2428"]
[BlackElo "2101"]
[TimeControl "180+1"]
[EndTime "10:06:38 PDT"]
[Termination "Biregina won on time"]

1. h4 {[%clk 0:02:55.2]} 1... e5 {[%clk 0:02:59.4]} 2. c3 {[%clk 0:02:50.9]}
2... d5 {[%clk 0:02:59.4]} 3. d4 {[%clk 0:02:50.9]} 3... e4 {[%clk 0:02:58.8]}
4. Bf4 {[%clk 0:02:46.8]} 4... Bd6 {[%clk 0:02:57.9]} 5. Bxd6 {[%clk 0:02:44.8]}
5... Qxd6 {[%clk 0:02:57.5]} 6. e3 {[%clk 0:02:45.5]} 6... Nf6 {[%clk
0:02:57.4]} 7. c4 {[%clk 0:02:45.7]} 7... c6 {[%clk 0:02:57]} 8. Nc3 {[%clk
0:02:45.8]} 8... a6 {[%clk 0:02:55.8]} 9. c5 {[%clk 0:02:41.6]} 9... Qe7 {[%clk
0:02:52.1]} 10. b4 {[%clk 0:02:41.8]} 10... O-O {[%clk 0:02:51.3]} 11. a4 {[%clk
0:02:41.9]} 11... Bg4 {[%clk 0:02:51]} 12. Be2 {[%clk 0:02:41.7]} 12... Bxe2
{[%clk 0:02:46.2]} 13. Ngxe2 {[%clk 0:02:42.6]} 13... Nbd7 {[%clk 0:02:45.6]}
14. Nf4 {[%clk 0:02:42.7]} 14... Rfb8 {[%clk 0:02:39]} 15. a5 {[%clk 0:02:29.6]}
15... Nf8 {[%clk 0:02:38]} 16. g4 {[%clk 0:02:29.4]} 16... Ne6 {[%clk
0:02:37.6]} 17. g5 {[%clk 0:02:29.4]} 17... Ne8 {[%clk 0:02:33.2]} 18. Qg4
{[%clk 0:02:27]} 18... Nxf4 {[%clk 0:02:32.2]} 19. Qxf4 {[%clk 0:02:27.9]} 19...
Nc7 {[%clk 0:02:25.7]} 20. Ne2 {[%clk 0:02:27.6]} 20... Ne6 {[%clk 0:02:25.2]}
21. Qg4 {[%clk 0:02:26.7]} 21... Qd7 {[%clk 0:02:18.4]} 22. Qg3 {[%clk
0:02:11.8]} 22... Qc7 {[%clk 0:02:15.2]} 23. Qg2 {[%clk 0:02:09.3]} 23... Qd7
{[%clk 0:02:14.4]} 24. h5 {[%clk 0:02:06.3]} 24... Kh8 {[%clk 0:02:11.6]} 25.
Kd2 {[%clk 0:02:01.5]} 25... Rg8 {[%clk 0:02:07.8]} 26. Raf1 {[%clk 0:01:53.3]}
26... f5 {[%clk 0:02:01.8]} 27. f3 {[%clk 0:01:48.4]} 27... Qe7 {[%clk 0:01:37]}
28. fxe4 {[%clk 0:01:47.1]} 28... fxe4 {[%clk 0:01:34.5]} 29. Rf5 {[%clk
0:01:44.6]} 29... Raf8 {[%clk 0:01:23.2]} 30. Re5 {[%clk 0:01:44.2]} 30... Qf7
{[%clk 0:01:14.2]} 31. h6 {[%clk 0:01:43.2]} 31... g6 {[%clk 0:01:11.4]} 32. Qh3
{[%clk 0:01:15.4]} 32... Nc7 {[%clk 0:00:57.7]} 33. Nf4 {[%clk 0:01:11.9]} 33...
Nb5 {[%clk 0:00:54.1]} 34. Rf1 {[%clk 0:00:58.4]} 34... Na3 {[%clk 0:00:51.1]}
35. Re6 {[%clk 0:00:33.4]} 35... Nc4+ {[%clk 0:00:48.5]} 36. Ke2 {[%clk
0:00:31.9]} 36... Qd7 {[%clk 0:00:36.5]} 37. Rxg6 {[%clk 0:00:13.1]} 37... Qxh3
{[%clk 0:00:30.7]} 38. Rxg8+ {[%clk 0:00:13]} 38... Kxg8 {[%clk 0:00:20.7]} 39.
Nxh3 {[%clk 0:00:13.9]} 39... Rxf1 {[%clk 0:00:07.4]} 40. Kxf1 {[%clk
0:00:14.8]} 40... Kf7 {[%clk 0:00:07.4]} 41. Kf2 {[%clk 0:00:15.7]} 41... Kg6
{[%clk 0:00:04.8]} 42. Nf4+ {[%clk 0:00:06.7]} 42... Kxg5 {[%clk 0:00:04.2]} 43.
Ne6+ {[%clk 0:00:07.6]} 43... Kg6 {[%clk 0:00:04.2]} 44. Nd8 {[%clk 0:00:06.8]}
44... Kxh6 {[%clk 0:00:02.9]} 45. Nxb7 {[%clk 0:00:07.5]} 45... Kg5 {[%clk
0:00:02.9]} 46. Nd8 {[%clk 0:00:04.1]} 46... Nb2 {[%clk 0:00:03]} 47. Nxc6
{[%clk 0:00:03.5]} 47... h5 {[%clk 0:00:01.9]} 48. Kg2 {[%clk 0:00:03.3]} 48...
Nd3 {[%clk 0:00:01.6]} 49. Ne7 {[%clk 0:00:03.2]} 49... Kg4 {[%clk 0:00:01.5]}
50. Nxd5 {[%clk 0:00:03]} 1-0

[Event "Early-Titled-Tuesday-Blitz-September-12-2023"]
[Site "Chess.com"]
[Date "2023.09.12"]
[Round "11"]
[White "twofoxniel"]
[Black "DTChess"]
[Result "0-1"]
[WhiteElo "2617"]
[BlackElo "2540"]
[TimeControl "180+1"]
[EndTime "10:06:40 PDT"]
[Termination "DTChess won on time"]

1. e4 {[%clk 0:03:00.9]} 1... e5 {[%clk 0:02:59.5]} 2. Nf3 {[%clk 0:03:00.6]}
2... Nc6 {[%clk 0:02:59.6]} 3. Bc4 {[%clk 0:03:01.1]} 3... Nf6 {[%clk
0:02:59.4]} 4. d3 {[%clk 0:03:00.6]} 4... Bc5 {[%clk 0:02:59]} 5. Nc3 {[%clk
0:03:00.7]} 5... d6 {[%clk 0:02:59.2]} 6. Be3 {[%clk 0:03:01.1]} 6... Bb6 {[%clk
0:02:59.2]} 7. h3 {[%clk 0:02:58.5]} 7... h6 {[%clk 0:02:57.8]} 8. O-O {[%clk
0:02:56.9]} 8... Be6 {[%clk 0:02:57.6]} 9. Bb3 {[%clk 0:02:52.2]} 9... Qd7
{[%clk 0:02:56.9]} 10. d4 {[%clk 0:02:50.8]} 10... exd4 {[%clk 0:02:55.4]} 11.
Nxd4 {[%clk 0:02:50.9]} 11... Bxb3 {[%clk 0:02:54.5]} 12. axb3 {[%clk
0:02:49.7]} 12... O-O {[%clk 0:02:52.5]} 13. Nf5 {[%clk 0:02:40.9]} 13... Ne7
{[%clk 0:02:41.3]} 14. Ng3 {[%clk 0:02:21]} 14... Bxe3 {[%clk 0:02:27.2]} 15.
fxe3 {[%clk 0:02:21.9]} 15... Nh7 {[%clk 0:02:25.4]} 16. Qd4 {[%clk 0:02:13.8]}
16... a6 {[%clk 0:02:23.8]} 17. Rf2 {[%clk 0:02:11]} 17... Nc6 {[%clk 0:02:19]}
18. Qd2 {[%clk 0:02:04.4]} 18... Rae8 {[%clk 0:02:14.5]} 19. Raf1 {[%clk
0:02:03.3]} 19... Ng5 {[%clk 0:02:10.8]} 20. Rf4 {[%clk 0:01:51]} 20... Re5
{[%clk 0:02:04.6]} 21. Qf2 {[%clk 0:01:43]} 21... Ne6 {[%clk 0:01:46]} 22. Rg4
{[%clk 0:01:39.5]} 22... Rg5 {[%clk 0:01:43.7]} 23. Rxg5 {[%clk 0:01:31.8]}
23... Nxg5 {[%clk 0:01:43.3]} 24. h4 {[%clk 0:01:28.5]} 24... Ne6 {[%clk
0:01:41.3]} 25. Qf5 {[%clk 0:01:27]} 25... Ne7 {[%clk 0:01:38.9]} 26. Qg4 {[%clk
0:01:25]} 26... Nc6 {[%clk 0:01:25]} 27. Nd5 {[%clk 0:01:23.6]} 27... Kh8 {[%clk
0:01:22.6]} 28. Nf5 {[%clk 0:01:16.2]} 28... Ne5 {[%clk 0:01:21.3]} 29. Qh5
{[%clk 0:01:16]} 29... f6 {[%clk 0:00:58.9]} 30. Nf4 {[%clk 0:00:32]} 30... Nc5
{[%clk 0:00:48]} 31. Nxh6 {[%clk 0:00:27.1]} 31... gxh6 {[%clk 0:00:42.7]} 32.
Qxh6+ {[%clk 0:00:27.6]} 32... Kg8 {[%clk 0:00:40.8]} 33. Nh5 {[%clk 0:00:26]}
33... Nxe4 {[%clk 0:00:36.3]} 34. Rf4 {[%clk 0:00:24.6]} 34... d5 {[%clk
0:00:30.7]} 35. Nxf6+ {[%clk 0:00:21.3]} 35... Nxf6 {[%clk 0:00:28.8]} 36. Qg5+
{[%clk 0:00:21.2]} 36... Qg7 {[%clk 0:00:26.3]} 37. Qxe5 {[%clk 0:00:21.6]}
37... c6 {[%clk 0:00:26]} 38. h5 {[%clk 0:00:20.7]} 38... Ne4 {[%clk 0:00:23]}
39. Qe6+ {[%clk 0:00:20.6]} 39... Kh7 {[%clk 0:00:23.1]} 40. Rg4 {[%clk
0:00:20.8]} 40... Qf7 {[%clk 0:00:20.4]} 41. Qe5 {[%clk 0:00:15.6]} 41... Rg8
{[%clk 0:00:18.2]} 42. Rf4 {[%clk 0:00:13.7]} 42... Qg7 {[%clk 0:00:17.1]} 43.
Qf5+ {[%clk 0:00:13.9]} 43... Kh8 {[%clk 0:00:17.5]} 44. g4 {[%clk 0:00:13.1]}
44... a5 {[%clk 0:00:16.9]} 45. Qe6 {[%clk 0:00:10.8]} 45... Kh7 {[%clk
0:00:14.3]} 46. h6 {[%clk 0:00:10.6]} 46... Qxh6 {[%clk 0:00:13.8]} 47. Rf7+
{[%clk 0:00:11.1]} 47... Rg7 {[%clk 0:00:14.2]} 48. Qf5+ {[%clk 0:00:11.7]}
48... Qg6 {[%clk 0:00:14.7]} 49. Rxg7+ {[%clk 0:00:08.6]} 49... Kxg7 {[%clk
0:00:14.9]} 50. Qd7+ {[%clk 0:00:09.3]} 50... Kh6 {[%clk 0:00:15.3]} 51. Qc8
{[%clk 0:00:07.2]} 51... Qf6 {[%clk 0:00:15.2]} 0-1

[Event "Early-Titled-Tuesday-Blitz-September-12-2023"]
[Site "Chess.com"]
[Date "2023.09.12"]
[Round "11"]
[White "Predator0608"]
[Black "dadice10"]
[Result "1-0"]
[WhiteElo "2531"]
[BlackElo "2247"]
[TimeControl "180+1"]
[EndTime "10:06:44 PDT"]
[Termination "Predator0608 won on time"]

1. f4 {[%clk 0:02:59.5]} 1... e5 {[%clk 0:02:57.3]} 2. fxe5 {[%clk 0:02:59.1]}
2... d6 {[%clk 0:02:57.8]} 3. d4 {[%clk 0:02:55.6]} 3... dxe5 {[%clk 0:02:56.6]}
4. dxe5 {[%clk 0:02:56.5]} 4... Qxd1+ {[%clk 0:02:55.3]} 5. Kxd1 {[%clk
0:02:57.4]} 5... Nc6 {[%clk 0:02:53.6]} 6. Nf3 {[%clk 0:02:57.3]} 6... Bg4
{[%clk 0:02:52.8]} 7. Nc3 {[%clk 0:02:56]} 7... O-O-O+ {[%clk 0:02:52]} 8. Bd2
{[%clk 0:02:50.3]} 8... Bb4 {[%clk 0:02:45.8]} 9. Kc1 {[%clk 0:02:43.9]} 9...
Nge7 {[%clk 0:02:40.6]} 10. h3 {[%clk 0:02:44]} 10... Bxf3 {[%clk 0:02:36.3]}
11. exf3 {[%clk 0:02:44.9]} 11... Nxe5 {[%clk 0:02:34.9]} 12. a3 {[%clk
0:02:45.1]} 12... Ba5 {[%clk 0:02:19.3]} 13. Bb5 {[%clk 0:02:41]} 13... c6
{[%clk 0:02:15.7]} 14. Re1 {[%clk 0:02:39]} 14... f6 {[%clk 0:02:06.7]} 15. f4
{[%clk 0:02:30.8]} 15... cxb5 {[%clk 0:02:04.7]} 16. fxe5 {[%clk 0:02:30.6]}
16... f5 {[%clk 0:01:54.9]} 17. b4 {[%clk 0:02:23]} 17... Bc7 {[%clk 0:01:53.3]}
18. Nxb5 {[%clk 0:02:23.1]} 18... Rd5 {[%clk 0:01:50.6]} 19. Nxc7 {[%clk
0:02:19]} 19... Kxc7 {[%clk 0:01:51.1]} 20. Bg5 {[%clk 0:02:14]} 20... Ng6
{[%clk 0:01:47.6]} 21. e6 {[%clk 0:02:11.3]} 21... Re8 {[%clk 0:01:46.6]} 22.
Kb2 {[%clk 0:01:55.4]} 22... h6 {[%clk 0:01:46.3]} 23. Be3 {[%clk 0:01:52.4]}
23... Rxe6 {[%clk 0:01:40.7]} 24. Bxa7 {[%clk 0:01:46.2]} 24... Rxe1 {[%clk
0:01:36.4]} 25. Rxe1 {[%clk 0:01:47.1]} 25... Nf4 {[%clk 0:01:24.6]} 26. Bf2
{[%clk 0:01:36]} 26... Nxg2 {[%clk 0:01:15.6]} 27. Rg1 {[%clk 0:01:34.8]} 27...
Nf4 {[%clk 0:01:06.5]} 28. Rxg7+ {[%clk 0:01:35.7]} 28... Kc6 {[%clk 0:01:04.2]}
29. Bg3 {[%clk 0:01:13.6]} 29... Ne2 {[%clk 0:01:03]} 30. Rg6+ {[%clk
0:01:12.8]} 30... Kd7 {[%clk 0:00:59.5]} 31. Bf2 {[%clk 0:01:08.8]} 31... Rd6
{[%clk 0:00:54.2]} 32. Rg7+ {[%clk 0:01:08.5]} 32... Kc6 {[%clk 0:00:53.8]} 33.
Bc5 {[%clk 0:01:06.5]} 33... Re6 {[%clk 0:00:51.6]} 34. Kb3 {[%clk 0:01:04.7]}
34... f4 {[%clk 0:00:50.3]} 35. Kc4 {[%clk 0:00:55.3]} 35... b5+ {[%clk
0:00:49]} 36. Kd3 {[%clk 0:00:54.3]} 36... Ng3 {[%clk 0:00:32.1]} 37. Rf7 {[%clk
0:00:50.6]} 37... Ne4 {[%clk 0:00:31.1]} 38. Rxf4 {[%clk 0:00:46.4]} 38... Nxc5+
{[%clk 0:00:28.9]} 39. bxc5 {[%clk 0:00:47.3]} 39... Kxc5 {[%clk 0:00:29.1]} 40.
Rf5+ {[%clk 0:00:47.3]} 40... Kb6 {[%clk 0:00:28]} 41. Kd4 {[%clk 0:00:44.1]}
41... Rc6 {[%clk 0:00:24]} 42. c3 {[%clk 0:00:38.8]} 42... Rc4+ {[%clk
0:00:23.9]} 43. Kd3 {[%clk 0:00:39]} 43... Rh4 {[%clk 0:00:24]} 44. Rf3 {[%clk
0:00:34.2]} 44... Ka5 {[%clk 0:00:23.5]} 45. Kc2 {[%clk 0:00:33.2]} 45... Ka4
{[%clk 0:00:22.5]} 46. Rf6 {[%clk 0:00:30.2]} 46... Ka5 {[%clk 0:00:15.8]} 47.
Kb3 {[%clk 0:00:20.5]} 47... Rxh3 {[%clk 0:00:13.8]} 48. Rf5 {[%clk 0:00:21.2]}
48... Rh4 {[%clk 0:00:11.3]} 49. Re5 {[%clk 0:00:20.1]} 49... Ka6 {[%clk
0:00:09.7]} 50. Re6+ {[%clk 0:00:19.4]} 50... Ka5 {[%clk 0:00:09.9]} 51. Rf6
{[%clk 0:00:19.3]} 51... h5 {[%clk 0:00:07.7]} 52. Rf5 {[%clk 0:00:19.5]} 52...
Rh1 {[%clk 0:00:07.4]} 53. a4 {[%clk 0:00:19.2]} 53... Rb1+ {[%clk 0:00:05.2]}
54. Ka2 {[%clk 0:00:18.7]} 54... Rc1 {[%clk 0:00:03.6]} 55. Kb2 {[%clk
0:00:18.2]} 1-0

[Event "Early-Titled-Tuesday-Blitz-September-12-2023"]
[Site "Chess.com"]
[Date "2023.09.12"]
[Round "11"]
[White "EvgenyBurmakin"]
[Black "Cambek64"]
[Result "1-0"]
[WhiteElo "2296"]
[BlackElo "2473"]
[TimeControl "180+1"]
[EndTime "10:06:48 PDT"]
[Termination "EvgenyBurmakin won on time"]

1. e4 {[%clk 0:03:00.9]} 1... c5 {[%clk 0:02:59.1]} 2. Nc3 {[%clk 0:03:00.5]}
2... Nc6 {[%clk 0:02:57.2]} 3. Bb5 {[%clk 0:03:00.3]} 3... Nd4 {[%clk
0:02:56.2]} 4. Bc4 {[%clk 0:03:00.9]} 4... g6 {[%clk 0:02:55.2]} 5. Nf3 {[%clk
0:03:00.9]} 5... Bg7 {[%clk 0:02:55.8]} 6. Nxd4 {[%clk 0:02:59.8]} 6... cxd4
{[%clk 0:02:55.2]} 7. Qf3 {[%clk 0:02:59.7]} 7... e6 {[%clk 0:02:54.1]} 8. Nb5
{[%clk 0:02:58]} 8... d6 {[%clk 0:02:54]} 9. Qa3 {[%clk 0:02:56.8]} 9... Ke7
{[%clk 0:02:50.7]} 10. c3 {[%clk 0:02:02.2]} 10... dxc3 {[%clk 0:02:34.4]} 11.
dxc3 {[%clk 0:01:59.8]} 11... a6 {[%clk 0:02:33.7]} 12. Be2 {[%clk 0:01:35.5]}
12... e5 {[%clk 0:02:13]} 13. Be3 {[%clk 0:01:32.5]} 13... Be6 {[%clk
0:01:55.4]} 14. Nxd6 {[%clk 0:01:29.8]} 14... Kf6 {[%clk 0:01:51.7]} 15. O-O-O
{[%clk 0:01:18.9]} 15... Qc7 {[%clk 0:01:36.7]} 16. f4 {[%clk 0:01:13.7]} 16...
Bf8 {[%clk 0:01:31.9]} 17. fxe5+ {[%clk 0:01:09.3]} 17... Kg7 {[%clk 0:01:31.8]}
18. Rhf1 {[%clk 0:01:05.1]} 18... h5 {[%clk 0:01:02.5]} 19. Qc5 {[%clk
0:00:42.4]} 19... Qxc5 {[%clk 0:00:56.7]} 20. Bxc5 {[%clk 0:00:43.3]} 20... Ne7
{[%clk 0:00:55.9]} 21. Bb6 {[%clk 0:00:36.2]} 21... Nc6 {[%clk 0:00:51.6]} 22.
Bc4 {[%clk 0:00:24.7]} 22... Bxd6 {[%clk 0:00:35.3]} 23. Bxe6 {[%clk 0:00:23.2]}
23... fxe6 {[%clk 0:00:25.3]} 24. exd6 {[%clk 0:00:23.1]} 24... Rhf8 {[%clk
0:00:17.8]} 25. Rxf8 {[%clk 0:00:17.9]} 25... Kxf8 {[%clk 0:00:17.1]} 26. d7
{[%clk 0:00:13.2]} 26... Ke7 {[%clk 0:00:15.5]} 27. Bc5+ {[%clk 0:00:13.7]}
27... Kf7 {[%clk 0:00:15.7]} 28. Kc2 {[%clk 0:00:11.4]} 28... e5 {[%clk
0:00:09.6]} 29. Rd6 {[%clk 0:00:09.7]} 29... Nd8 {[%clk 0:00:06.6]} 30. c4
{[%clk 0:00:07.4]} 30... Ne6 {[%clk 0:00:07]} 31. b4 {[%clk 0:00:06.2]} 31...
Rb8 {[%clk 0:00:03.4]} 32. Bb6 {[%clk 0:00:06.1]} 32... Nd8 {[%clk 0:00:02.1]}
33. c5 {[%clk 0:00:05.7]} 33... Ke7 {[%clk 0:00:02.7]} 34. a4 {[%clk 0:00:04.5]}
34... Nc6 {[%clk 0:00:03.2]} 35. b5 {[%clk 0:00:04]} 35... axb5 {[%clk
0:00:03.7]} 36. axb5 {[%clk 0:00:04.9]} 36... Nd4+ {[%clk 0:00:03.9]} 37. Kd3
{[%clk 0:00:02.3]} 37... Nxb5 {[%clk 0:00:03.3]} 38. Rxg6 {[%clk 0:00:02.5]}
38... Kxd7 {[%clk 0:00:02.4]} 39. Rg5 {[%clk 0:00:02]} 39... Re8 {[%clk
0:00:01.4]} 40. Rxh5 {[%clk 0:00:01.9]} 40... Nd4 {[%clk 0:00:01.4]} 41. Rh7+
{[%clk 0:00:02.4]} 41... Kc6 {[%clk 0:00:02]} 42. Kc4 {[%clk 0:00:02.7]} 42...
Ne6 {[%clk 0:00:01]} 43. Rh6 {[%clk 0:00:02.5]} 43... Re7 {[%clk 0:00:01.3]} 44.
Rf6 {[%clk 0:00:02.3]} 44... Kd7 {[%clk 0:00:01.7]} 45. g4 {[%clk 0:00:02.5]}
45... Nf4 {[%clk 0:00:01.9]} 46. Rf5 {[%clk 0:00:02.7]} 46... Rh7 {[%clk
0:00:01.3]} 47. Rf6 {[%clk 0:00:01.5]} 1-0

[Event "Early-Titled-Tuesday-Blitz-September-12-2023"]
[Site "Chess.com"]
[Date "2023.09.12"]
[Round "11"]
[White "Djager97"]
[Black "FuenfgegenWilly"]
[Result "0-1"]
[WhiteElo "2522"]
[BlackElo "2383"]
[TimeControl "180+1"]
[EndTime "10:06:50 PDT"]
[Termination "FuenfgegenWilly won on time"]

1. e4 {[%clk 0:03:00]} 1... e5 {[%clk 0:02:59.5]} 2. Nf3 {[%clk 0:02:59.8]} 2...
Nc6 {[%clk 0:03:00]} 3. d4 {[%clk 0:03:00.4]} 3... exd4 {[%clk 0:03:00.9]} 4.
Nxd4 {[%clk 0:03:01.1]} 4... Nf6 {[%clk 0:03:01.5]} 5. Nxc6 {[%clk 0:03:01.4]}
5... bxc6 {[%clk 0:03:01.6]} 6. e5 {[%clk 0:03:02.1]} 6... Qe7 {[%clk
0:03:02.1]} 7. Qe2 {[%clk 0:03:02.8]} 7... Nd5 {[%clk 0:03:02.5]} 8. c4 {[%clk
0:03:03.7]} 8... Ba6 {[%clk 0:03:03.1]} 9. b3 {[%clk 0:03:04.3]} 9... g6 {[%clk
0:03:02.6]} 10. g3 {[%clk 0:03:04.2]} 10... Bg7 {[%clk 0:03:01.3]} 11. Bb2
{[%clk 0:03:04.8]} 11... O-O {[%clk 0:03:00.4]} 12. Bg2 {[%clk 0:03:05.4]} 12...
Rae8 {[%clk 0:02:59.4]} 13. O-O {[%clk 0:03:05.9]} 13... d6 {[%clk 0:02:59.5]}
14. Qd2 {[%clk 0:03:01]} 14... Nb6 {[%clk 0:02:57.5]} 15. Re1 {[%clk 0:02:45.4]}
15... dxe5 {[%clk 0:02:39.2]} 16. Bxc6 {[%clk 0:02:37]} 16... Rd8 {[%clk
0:02:39.2]} 17. Qa5 {[%clk 0:02:37.6]} 17... Bxc4 {[%clk 0:02:32]} 18. Ba3
{[%clk 0:02:14]} 18... Qe6 {[%clk 0:01:55.9]} 19. Bxf8 {[%clk 0:02:05.5]} 19...
Kxf8 {[%clk 0:01:52.5]} 20. Bg2 {[%clk 0:01:10.2]} 20... Bd3 {[%clk 0:01:30.8]}
21. Nc3 {[%clk 0:01:09.2]} 21... a6 {[%clk 0:01:18.2]} 22. Rad1 {[%clk
0:01:04.9]} 22... Rd7 {[%clk 0:01:02.4]} 23. Ne4 {[%clk 0:00:48.4]} 23... Bxe4
{[%clk 0:00:56.9]} 24. Bxe4 {[%clk 0:00:49.3]} 24... f5 {[%clk 0:00:53.5]} 25.
Rxd7 {[%clk 0:00:38.5]} 25... Qxd7 {[%clk 0:00:52.8]} 26. Bf3 {[%clk 0:00:36]}
26... e4 {[%clk 0:00:51.9]} 27. Rd1 {[%clk 0:00:35.8]} 27... Qb5 {[%clk
0:00:34.3]} 28. Qxb5 {[%clk 0:00:30.6]} 28... axb5 {[%clk 0:00:35.2]} 29. Be2
{[%clk 0:00:31.1]} 29... b4 {[%clk 0:00:30.1]} 30. Bc4 {[%clk 0:00:20.5]} 30...
Ke7 {[%clk 0:00:25.9]} 31. Kf1 {[%clk 0:00:20.6]} 31... Be5 {[%clk 0:00:20.2]}
32. Ke2 {[%clk 0:00:20.3]} 32... Nc8 {[%clk 0:00:15.7]} 33. Rd5 {[%clk
0:00:17.9]} 33... Bd6 {[%clk 0:00:15.9]} 34. Rb5 {[%clk 0:00:14.8]} 34... Nb6
{[%clk 0:00:15.7]} 35. Ra5 {[%clk 0:00:13.2]} 35... Kf6 {[%clk 0:00:14.1]} 36.
f3 {[%clk 0:00:11.6]} 36... exf3+ {[%clk 0:00:12.5]} 37. Kxf3 {[%clk 0:00:12.5]}
37... h6 {[%clk 0:00:11.4]} 38. Ra7 {[%clk 0:00:09.6]} 38... g5 {[%clk
0:00:09.9]} 39. Rb7 {[%clk 0:00:10]} 39... Ke5 {[%clk 0:00:08.4]} 40. Rb8 {[%clk
0:00:09.7]} 40... Kd4 {[%clk 0:00:04.8]} 41. Rh8 {[%clk 0:00:10.1]} 41... g4+
{[%clk 0:00:03.5]} 42. Kf2 {[%clk 0:00:09.8]} 42... Nxc4 {[%clk 0:00:03.3]} 43.
bxc4 {[%clk 0:00:09.2]} 43... Kxc4 {[%clk 0:00:03.7]} 44. Rxh6 {[%clk
0:00:09.9]} 44... f4 {[%clk 0:00:03.7]} 45. gxf4 {[%clk 0:00:07.8]} 45... Bxf4
{[%clk 0:00:04.6]} 46. Rh4 {[%clk 0:00:07.6]} 46... Bxh2 {[%clk 0:00:04.1]} 47.
Rxh2 {[%clk 0:00:07.5]} 47... Kc3 {[%clk 0:00:03.8]} 48. Ke3 {[%clk 0:00:06.5]}
48... c5 {[%clk 0:00:03.1]} 49. Rg2 {[%clk 0:00:06.3]} 49... c4 {[%clk
0:00:03.1]} 50. Rxg4 {[%clk 0:00:06.6]} 50... b3 {[%clk 0:00:03.8]} 51. a4
{[%clk 0:00:04.8]} 51... b2 {[%clk 0:00:03.3]} 52. Rg1 {[%clk 0:00:04.2]} 52...
Kb3 {[%clk 0:00:02.4]} 53. a5 {[%clk 0:00:04.7]} 53... c3 {[%clk 0:00:01.9]} 54.
Kd3 {[%clk 0:00:01.3]} 54... c2 {[%clk 0:00:02.4]} 0-1

[Event "Early-Titled-Tuesday-Blitz-September-12-2023"]
[Site "Chess.com"]
[Date "2023.09.12"]
[Round "11"]
[White "the_chess_child"]
[Black "karinachess1"]
[Result "1-0"]
[WhiteElo "2882"]
[BlackElo "2615"]
[TimeControl "180+1"]
[EndTime "10:06:52 PDT"]
[Termination "the_chess_child won on time"]

1. e4 {[%clk 0:03:00.9]} 1... e5 {[%clk 0:02:59.3]} 2. Nf3 {[%clk 0:03:00.8]}
2... Nc6 {[%clk 0:02:59.2]} 3. d3 {[%clk 0:03:00.3]} 3... Nf6 {[%clk 0:02:55.5]}
4. g3 {[%clk 0:03:00.3]} 4... d5 {[%clk 0:02:52.6]} 5. exd5 {[%clk 0:03:01.2]}
5... Nxd5 {[%clk 0:02:52.5]} 6. Bg2 {[%clk 0:03:01.5]} 6... Be7 {[%clk
0:02:41.2]} 7. O-O {[%clk 0:03:01.1]} 7... O-O {[%clk 0:02:41.4]} 8. Re1 {[%clk
0:03:00.5]} 8... Bf6 {[%clk 0:02:34.2]} 9. Nc3 {[%clk 0:02:59.7]} 9... Nxc3
{[%clk 0:02:26.1]} 10. bxc3 {[%clk 0:03:00.6]} 10... Re8 {[%clk 0:02:26.4]} 11.
Nd2 {[%clk 0:02:58.2]} 11... g6 {[%clk 0:02:24.5]} 12. Rb1 {[%clk 0:02:57.4]}
12... Bg7 {[%clk 0:02:23.9]} 13. Ne4 {[%clk 0:02:57.1]} 13... Rb8 {[%clk
0:01:57.9]} 14. Nc5 {[%clk 0:02:51]} 14... Qd6 {[%clk 0:01:21]} 15. d4 {[%clk
0:02:44]} 15... b6 {[%clk 0:01:09.8]} 16. Ne4 {[%clk 0:02:38.8]} 16... Qd7
{[%clk 0:01:06.2]} 17. Bg5 {[%clk 0:02:03.2]} 17... Bb7 {[%clk 0:00:46.4]} 18.
d5 {[%clk 0:01:54.3]} 18... Ne7 {[%clk 0:00:42.7]} 19. c4 {[%clk 0:01:54.2]}
19... Nf5 {[%clk 0:00:32.4]} 20. Nf6+ {[%clk 0:01:45.6]} 20... Bxf6 {[%clk
0:00:32.6]} 21. Bxf6 {[%clk 0:01:46.5]} 21... Qd6 {[%clk 0:00:31.4]} 22. Bg5
{[%clk 0:01:46.3]} 22... f6 {[%clk 0:00:27.9]} 23. Bd2 {[%clk 0:01:44.3]} 23...
a5 {[%clk 0:00:25.3]} 24. Qg4 {[%clk 0:01:33.9]} 24... Ng7 {[%clk 0:00:23.7]}
25. h4 {[%clk 0:01:30.4]} 25... c6 {[%clk 0:00:18.8]} 26. Rxb6 {[%clk
0:01:29.1]} 26... Bc8 {[%clk 0:00:12]} 27. Rxc6 {[%clk 0:00:49.4]} 27... Qxc6
{[%clk 0:00:12.2]} 28. Qe4 {[%clk 0:00:49.4]} 28... Qc7 {[%clk 0:00:11.4]} 29.
g4 {[%clk 0:00:40.1]} 29... f5 {[%clk 0:00:07.3]} 30. Qe2 {[%clk 0:00:38.9]}
30... fxg4 {[%clk 0:00:07.4]} 31. Be3 {[%clk 0:00:38]} 31... Bf5 {[%clk
0:00:07.3]} 32. c5 {[%clk 0:00:38.3]} 32... Qd7 {[%clk 0:00:06.4]} 33. c6 {[%clk
0:00:37]} 33... Qd6 {[%clk 0:00:06.2]} 34. c4 {[%clk 0:00:37.4]} 34... e4 {[%clk
0:00:05.6]} 35. Rd1 {[%clk 0:00:34.9]} 35... Rbc8 {[%clk 0:00:02.6]} 36. c5
{[%clk 0:00:34.8]} 36... Qf8 {[%clk 0:00:02.8]} 37. Qb5 {[%clk 0:00:28.7]} 37...
Nh5 {[%clk 0:00:02.5]} 38. d6 {[%clk 0:00:28.7]} 38... Red8 {[%clk 0:00:01.7]}
39. c7 {[%clk 0:00:28]} 39... Rd7 {[%clk 0:00:01.7]} 40. Qc4+ {[%clk 0:00:26.4]}
40... Qf7 {[%clk 0:00:01.1]} 41. Qa4 {[%clk 0:00:18.6]} 41... Rcxc7 {[%clk
0:00:01.4]} 42. dxc7 {[%clk 0:00:18.7]} 42... Rxd1+ {[%clk 0:00:01.7]} 43. Qxd1
{[%clk 0:00:19.6]} 43... Qxc7 {[%clk 0:00:02.4]} 44. Qd4 {[%clk 0:00:18.9]}
44... Qc6 {[%clk 0:00:02.1]} 45. Bh6 {[%clk 0:00:18.5]} 45... Nf6 {[%clk
0:00:01.5]} 46. Bf1 {[%clk 0:00:18.5]} 46... Kf7 {[%clk 0:00:01.9]} 47. Bc4+
{[%clk 0:00:18.4]} 47... Be6 {[%clk 0:00:02.6]} 48. Be2 {[%clk 0:00:18.4]} 48...
Qd5 {[%clk 0:00:02.9]} 49. Qc3 {[%clk 0:00:18.5]} 49... e3 {[%clk 0:00:02.2]}
50. Bxe3 {[%clk 0:00:17.9]} 50... Ne4 {[%clk 0:00:02.2]} 51. Qc2 {[%clk
0:00:17.2]} 51... Nf6 {[%clk 0:00:01]} 52. c6 {[%clk 0:00:17.2]} 52... Bc8
{[%clk 0:00:01.2]} 53. Bc4 {[%clk 0:00:16.8]} 1-0